lending/lending_fUSD_20240507
["ID","MTS","AMOUNT","RATE_DAILY","PERIOD"]
[326600745,1715124649501,-500.0,0.00019452,2]
[326600746,1715124649510,-500.0,0.00019452,2]
[326600747,1715124649520,-500.0,0.00019452,2]
[326600748,1715124649534,-500.0,0.00019452,2]
[326600749,1715124649545,-500.0,0.00019452,2]
[326600750,1715124649554,-500.0,0.00019452,2]
[326600751,1715124649564,-500.0,0.00019452,2]
[326600752,1715124649574,-500.0,0.00019452,2]
[326600753,1715124649583,-500.0,0.00019452,2]
[326600754,1715124649593,-500.0,0.00019452,2]
[326600755,1715124649604,-521.88,0.00019452,2]
[326600756,1715124649614,-500.0,0.00019452,2]
[326600757,1715124649624,-500.0,0.00019452,2]
[326600758,1715124649634,-286.21,0.00019452,2]
[326600759,1715124649644,-500.0,0.00019452,2]
[326600760,1715124649655,-409.92,0.00019452,2]
[326600761,1715124649666,-500.0,0.00019452,2]
[326600762,1715124649677,-500.0,0.00019452,2]
[326600763,1715124649688,-504.65,0.00019452,2]
[326600764,1715124649699,-210.42,0.00019452,2]
[326600765,1715124649709,-500.0,0.00019452,2]
[326600766,1715124649719,-500.0,0.00019452,2]
[326600767,1715124649730,-500.0,0.00019452,2]
[326600768,1715124649740,-500.0,0.00019452,2]
[326600769,1715124649750,-500.0,0.00019452,2]
[326600770,1715124649760,-452.68,0.00019452,2]
[326600771,1715124649770,-500.0,0.00019452,2]
[326600772,1715124649780,-500.0,0.00019452,2]
[326600773,1715124649792,-518.28,0.00019452,2]
[326600774,1715124649802,-500.0,0.00019452,2]
[326600775,1715124649811,-500.0,0.00019452,2]
[326600776,1715124649821,-308.52,0.00019452,2]
[326600777,1715124649831,-500.0,0.00019452,2]
[326600778,1715124649841,-636.83,0.00019452,2]
[326600779,1715124649851,-500.0,0.00019452,2]
[326600780,1715124649861,-500.0,0.00019452,2]
[326600781,1715124649873,-500.0,0.00019452,2]
[326600782,1715124649883,-500.0,0.00019452,2]
[326600783,1715124649893,-500.0,0.00019452,2]
[326600784,1715124649902,-500.0,0.00019452,2]
[326600785,1715124649913,-500.0,0.00019452,2]
[326600786,1715124649923,-448.42,0.00019452,2]
[326600787,1715124649934,-500.0,0.00019452,2]
[326600788,1715124649944,-500.0,0.00019452,2]
[326600789,1715124649954,-500.0,0.00019452,2]
[326600790,1715124649964,-500.0,0.00019452,2]
[326600791,1715124649974,-516.74,0.00019452,2]
[326600792,1715124649984,-500.0,0.00019452,2]
[326600793,1715124649994,-516.04004101,0.00019452,2]
[326600794,1715124650004,-500.0,0.00019452,2]
[326600795,1715124650014,-500.0,0.00019452,2]
[326600796,1715124650024,-500.0,0.00019452,2]
[326600797,1715124650034,-160.8,0.00019452,2]
[326600798,1715124650044,-585.19,0.00019452,2]
[326600799,1715124650054,-500.0,0.00019452,2]
[326600800,1715124650064,-500.0,0.00019452,2]
[326600801,1715124650074,-500.0,0.00019452,2]
[326600802,1715124650084,-281.48,0.00019452,2]
[326600803,1715124650094,-625.67,0.00019452,2]
[326600804,1715124650103,-499.89,0.00019452,2]
[326600805,1715124650113,-407.93,0.00019452,2]
[326600806,1715124650123,-335.05,0.00019452,2]
[326600807,1715124650134,-156.54,0.00019452,2]
[326600808,1715124650144,-569.26,0.00019452,2]
[326600809,1715124650154,-500.0,0.00019452,2]
[326600810,1715124650164,-500.0,0.00019452,2]
[326600811,1715124650174,-500.0,0.00019452,2]
[326600812,1715124650184,-500.0,0.00019452,2]
[326600813,1715124650194,-500.0,0.00019452,2]
[326600814,1715124650204,-500.0,0.00019452,2]
[326600815,1715124650214,-423.36,0.00019452,2]
[326600816,1715124650224,-239.24,0.00019452,2]
[326600817,1715124650234,-300.43,0.00019525,2]
[326600818,1715124650244,-500.0,0.00019525,2]
[326600819,1715124650254,-162.14902037,0.00019562,2]
[326600820,1715124650264,-500.0,0.00019624,2]
[326600821,1715124650275,-500.0,0.00019624,2]
[326600822,1715124650284,-1000.0,0.00019624,5]
[326600823,1715124650296,-317.83,0.00019625,2]
[326600824,1715124650306,-500.0,0.00019625,2]
[326600825,1715124650316,-270.33,0.00019625,2]
[326600826,1715124650326,-500.0,0.00019625,2]
[326600827,1715124650336,-397.59,0.00019625,2]
[326600828,1715124650346,-630.34,0.00019625,2]
[326600829,1715124650356,-282.44,0.00019625,2]
[326600830,1715124650368,-500.0,0.00019625,2]
[326600831,1715124650378,-319.95,0.00019625,2]
[326600832,1715124650388,-156.39,0.00019625,2]
[326600833,1715124650398,-328.57,0.00019625,2]
[326600834,1715124650408,-532.68,0.00019625,2]
[326600835,1715124650419,-515.18,0.00019625,2]
[326600836,1715124650429,-265.41,0.00019625,2]
[326600837,1715124650439,-182.17,0.00019625,2]
[326600838,1715124650449,-515.88,0.00019625,2]
[326600839,1715124650461,-500.0,0.00019625,2]
[326600840,1715124650471,-482.56299363,0.00019625,2]
[326600841,1715124650481,-500.0,0.00019625,2]
[326600842,1715124650491,-212.72954156,0.00019631,2]
[326600843,1715124650501,-162.14902037,0.00019707,2]
[326600844,1715124650512,-500.0,0.00019726,2]
[326600845,1715124650522,-335.73,0.00019726,2]
[326600846,1715124650538,-173.65,0.00019726,2]
[326600847,1715124650548,-230.11,0.00019726,2]
[326600848,1715124650558,-500.0,0.00019726,2]
[326600849,1715124650570,-500.0,0.00019726,2]
[326600850,1715124650580,-164.6,0.00019726,2]
[326600851,1715124650590,-500.0,0.00019726,2]
[326600852,1715124650601,-500.0,0.00019726,2]
[326600853,1715124650611,-500.0,0.00019726,2]
[326600854,1715124650621,-349.29,0.00019726,2]
[326600855,1715124650632,-500.0,0.00019726,2]
[326600856,1715124650642,-370.51,0.00019726,2]
[326600857,1715124650652,-352.46,0.00019726,2]
[326600858,1715124650662,-246.19,0.00019726,2]
[326600859,1715124650672,-500.0,0.00019726,2]
[326600860,1715124650683,-391.62,0.00019726,2]
[326600861,1715124650694,-500.0,0.00019726,2]
[326600862,1715124650704,-369.29,0.00019726,2]
[326600863,1715124650715,-336.13,0.00019726,2]
[326600864,1715124650724,-500.0,0.00019726,2]
[326600865,1715124650735,-523.42,0.00019726,2]
[326600866,1715124650746,-255.66,0.00019726,2]
[326600867,1715124650760,-164.75,0.00019726,2]
[326600868,1715124650771,-316.23,0.00019726,2]
[326600869,1715124650784,-443.08,0.00019726,2]
[326600870,1715124650796,-500.0,0.00019726,2]
[326600871,1715124650808,-500.0,0.00019726,2]
[326600872,1715124650821,-617.14,0.00019726,2]
[326600873,1715124650832,-500.0,0.00019726,2]
[326600874,1715124650842,-500.0,0.00019726,2]
[326600875,1715124650852,-500.0,0.00019726,2]
[326600876,1715124650863,-312.35,0.00019726,2]
[326600877,1715124650874,-500.0,0.00019726,2]
[326600878,1715124650885,-500.0,0.00019726,2]
[326600879,1715124650896,-500.0,0.00019726,2]
[326600880,1715124650907,-537.56,0.00019726,2]
[326600881,1715124650918,-391.32,0.00019726,2]
[326600882,1715124650929,-414.19,0.00019726,2]
[326600883,1715124650939,-220.99,0.00019726,2]
[326600884,1715124650950,-500.0,0.00019726,2]
[326600885,1715124650962,-500.0,0.00019726,2]
[326600886,1715124650973,-500.0,0.00019726,2]
[326600887,1715124650983,-264.87,0.00019726,2]
[326600888,1715124650994,-435.33,0.00019726,2]
[326600889,1715124651005,-212.92,0.00019726,2]
[326600890,1715124651019,-193.72,0.00019726,2]
[326600891,1715124651031,-521.51,0.00019726,2]
[326600892,1715124651044,-500.0,0.00019726,2]
[326600893,1715124651055,-268.07,0.00019726,2]
[326600894,1715124651066,-444.77,0.00019726,2]
[326600895,1715124651076,-595.76,0.00019726,2]
[326600896,1715124651087,-272.69,0.00019726,2]
[326600897,1715124651099,-500.0,0.00019726,2]
[326600898,1715124651110,-411.62,0.00019726,2]
[326600899,1715124651120,-500.0,0.00019726,2]
[326600900,1715124651131,-500.0,0.00019726,2]
[326600901,1715124651142,-500.0,0.00019726,2]
[326600902,1715124651153,-495.07,0.00019726,2]
[326600903,1715124651165,-500.0,0.00019726,2]
[326600904,1715124651175,-430.36,0.00019726,2]
[326600905,1715124651186,-500.0,0.00019726,2]
[326600906,1715124651196,-500.0,0.00019726,2]
[326600907,1715124651206,-500.0,0.00019726,2]
[326600908,1715124651216,-500.0,0.00019726,2]
[326600909,1715124651226,-500.0,0.00019726,2]
[326600910,1715124651236,-500.0,0.00019726,2]
[326600911,1715124651247,-359.41,0.00019726,2]
[326600912,1715124651257,-500.0,0.00019726,2]
[326600913,1715124651269,-500.0,0.00019726,2]
[326600914,1715124651279,-500.0,0.00019726,2]
[326600915,1715124651291,-500.0,0.00019726,2]
[326600916,1715124651301,-500.0,0.00019726,2]
[326600917,1715124651313,-500.0,0.00019726,2]
[326600918,1715124651324,-500.0,0.00019726,2]
[326600919,1715124651335,-500.0,0.00019726,2]
[326600920,1715124651346,-345.43,0.00019726,2]
[326600921,1715124651357,-500.0,0.00019726,2]
[326600922,1715124651369,-480.22,0.00019726,2]
[326600923,1715124651380,-443.45,0.00019726,2]
[326600924,1715124651395,-500.0,0.00019726,2]
[326600925,1715124651406,-324.34,0.00019726,2]
[326600926,1715124651418,-500.0,0.00019726,2]
[326600927,1715124651427,-201.78,0.00019726,2]
[326600928,1715124651438,-500.0,0.00019799,2]
[326600929,1715124651448,-212.72954156,0.00019801,2]
[326600930,1715124651457,-602.07620909,0.00019899,2]
[326600931,1715124651467,-400.89,0.00019899,2]
[326600932,1715124651476,-240.67,0.00019899,2]
[326600933,1715124651486,-6066.76619478,0.0002,5]
[326600934,1715124651496,-800.0,0.0002,3]
[326600935,1715124651508,-318.03,0.0002,2]
[326600936,1715124651518,-159.78,0.0002,2]
[326600937,1715124651531,-500.0,0.0002,2]
[326600938,1715124651544,-188.57,0.0002,2]
[326600939,1715124651556,-500.0,0.0002,2]
[326600940,1715124651567,-500.0,0.0002,2]
[326600941,1715124651576,-166.04,0.0002,2]
[326600942,1715124651586,-550.73,0.0002,2]
[326600943,1715124651596,-241.36,0.0002,2]
[326600944,1715124651607,-300.09,0.0002,2]
[326600945,1715124651619,-312.0,0.0002,2]
[326600946,1715124651629,-177.54,0.0002,2]
[326600947,1715124651640,-199.39,0.0002,2]
[326600948,1715124651652,-348.19,0.0002,2]
[326600949,1715124651662,-500.0,0.0002,2]
[326600950,1715124651673,-590.62,0.0002,2]
[326600951,1715124651683,-152.29,0.0002,2]
[326600952,1715124651693,-297.42,0.0002,2]
[326600953,1715124651703,-500.0,0.0002,2]
[326600954,1715124651713,-196.58,0.0002,2]
[326600955,1715124651723,-500.0,0.0002,2]
[326600956,1715124651734,-283.24,0.0002,2]
[326600957,1715124651744,-575.6,0.0002,2]
[326600958,1715124651756,-500.0,0.0002,2]
[326600959,1715124651766,-500.0,0.0002,2]
[326600960,1715124651776,-500.0,0.0002,2]
[326600961,1715124651787,-500.0,0.0002,2]
[326600962,1715124651798,-500.0,0.0002,2]
[326600963,1715124651808,-294.19,0.0002,2]
[326600964,1715124651819,-500.0,0.0002,2]
[326600965,1715124651829,-500.0,0.0002,2]
[326600966,1715124651839,-500.0,0.0002,2]
[326600967,1715124651850,-500.0,0.0002,2]
[326600968,1715124651860,-500.0,0.0002,2]
[326600969,1715124651870,-500.0,0.0002,2]
[326600970,1715124651880,-500.0,0.0002,2]
[326600971,1715124651891,-204.28,0.0002,2]
[326600972,1715124651900,-478.07,0.0002,2]
[326600973,1715124651911,-212.72954156,0.00020047,2]
[326600974,1715124651921,-1037.98964315,0.00020072,5]
[326600975,1715124651931,-500.0,0.00020073,2]
[326600976,1715124651954,-154.55525911,0.00020127,2]
[326600977,1715124651964,-597.25,0.00020273,2]
[326600978,1715124651974,-426.4,0.00020273,2]
[326600979,1715124651984,-500.0,0.00020273,2]
[326600980,1715124651994,-500.0,0.00020273,2]
[326600981,1715124652004,-500.0,0.00020273,2]
[326600982,1715124652014,-500.0,0.00020273,2]
[326600983,1715124652023,-500.0,0.00020273,2]
[326600984,1715124652034,-500.0,0.00020273,2]
[326600985,1715124652047,-500.0,0.00020273,2]
[326600986,1715124652056,-500.0,0.00020273,2]
[326600987,1715124652066,-435.7,0.00020273,2]
[326600988,1715124652076,-500.0,0.00020273,2]
[326600989,1715124652086,-500.0,0.00020273,2]
[326600990,1715124652096,-500.0,0.00020273,2]
[326600991,1715124652105,-500.0,0.00020273,2]
[326600992,1715124652115,-163.64480848,0.00020273,2]
[326600993,1715124652126,-500.0,0.00020273,2]
[326600994,1715124652136,-575.04,0.00020273,2]
[326600995,1715124652146,-500.0,0.00020347,2]
[326600996,1715124652156,-152.08051347,0.00020446,2]
[326600997,1715124652166,-212.72954156,0.00020516,2]
[326600998,1715124652176,-1000.0,0.00020538,2]
[326600999,1715124652186,-500.0,0.00020546,2]
[326601000,1715124652196,-500.0,0.00020547,2]
[326601001,1715124652206,-238.19,0.00020547,2]
[326601002,1715124652216,-500.0,0.00020547,2]
[326601003,1715124652226,-500.0,0.00020547,2]
[326601004,1715124652236,-500.0,0.00020547,2]
[326601005,1715124652246,-500.0,0.00020547,2]
[326601006,1715124652256,-500.0,0.00020547,2]
[326601007,1715124652266,-500.0,0.00020547,2]
[326601008,1715124652276,-500.0,0.00020547,2]
[326601009,1715124652289,-500.0,0.00020547,2]
[326601010,1715124652300,-500.0,0.00020547,2]
[326601011,1715124652310,-500.0,0.00020547,2]
[326601012,1715124652320,-553.16,0.00020547,2]
[326601013,1715124652331,-500.0,0.00020621,2]
[326601014,1715124652341,-594.13,0.00020821,2]
[326601015,1715124652352,-500.0,0.00020821,2]
[326601016,1715124652362,-500.0,0.00020821,2]
[326601017,1715124652372,-525.32,0.00020821,2]
[326601018,1715124652383,-500.0,0.00020821,2]
[326601019,1715124652395,-500.0,0.00020821,2]
[326601020,1715124652406,-500.0,0.00020821,2]
[326601021,1715124652416,-500.0,0.00020821,2]
[326601022,1715124652426,-500.0,0.00020821,2]
[326601023,1715124652436,-392.79,0.00020821,2]
[326601024,1715124652446,-500.0,0.00020821,2]
[326601025,1715124652456,-151.68738031,0.00020826,2]
[326601026,1715124652467,-500.0,0.00020895,2]
[326601027,1715124652477,-162.14902037,0.0002099,2]
[326601028,1715124652488,-666.74991136,0.00021,2]
[326601029,1715124652498,-500.0,0.00021095,2]
[326601030,1715124652508,-500.0,0.00021095,2]
[326601031,1715124652519,-500.0,0.00021095,2]
[326601032,1715124652534,-398.63,0.00021095,2]
[326601033,1715124652545,-610.28,0.00021095,2]
[326601034,1715124652555,-358.7829865,0.00021095,2]
[326601035,1715124652567,-500.0,0.00021095,2]
[326601036,1715124652576,-314.17928174,0.00021095,2]
[326601037,1715124652587,-303.55,0.00021169,2]
[326601038,1715124652597,-3112.0,0.000213,2]
[326601039,1715124652606,-700.35696819,0.00021302,2]
[326601040,1715124652618,-177.61,0.00021334,2]
[326601041,1715124652629,-155.73519123,0.00021334,2]
[326601042,1715124652639,-151.68738031,0.00021335,2]
[326601043,1715124652649,-236.16,0.00021369,2]
[326601044,1715124652659,-439.92,0.00021369,2]
[326601045,1715124652668,-500.0,0.00021369,2]
[326601046,1715124652678,-500.0,0.00021369,2]
[326601047,1715124652688,-167.98318954,0.00021402,2]
[326601048,1715124652698,-212.72954156,0.00021468,2]
[326601049,1715124652708,-162.14902037,0.00021485,2]
[326601050,1715124652894,-500.0,0.0002149,2]
[326601051,1715124652913,-1032.11,0.00021589,15]
[326601052,1715124652923,-500.0,0.00021643,2]
[326601053,1715124652932,-346.58,0.00021643,2]
[326601054,1715124652941,-152.08051347,0.00021811,2]
[326601055,1715124652951,-153.07187295,0.00021816,2]
[326601056,1715124652960,-500.0,0.00021917,2]
[326601057,1715124652969,-250.0,0.00021918,2]
[326601058,1715124652978,-250.0,0.00021918,2]
[326601059,1715124652988,-1542.84,0.00021918,2]
[326601060,1715124652997,-152.14305185,0.00021999,2]
[326601061,1715124653006,-500.0,0.00021999,2]
[326601062,1715124653015,-560.12594211,0.00021999,2]
[326601063,1715124653024,-514.44619132,0.00022,2]
[326601064,1715124653033,-850.0,0.00022,3]
[326601065,1715124653045,-1561.8,0.00022028,2]
[326601066,1715124653054,-153.07187295,0.00022142,2]
[326601067,1715124653063,-153.98340645,0.0002216,2]
[326601068,1715124653073,-500.0,0.00022191,2]
[326601069,1715124653082,-154.55525911,0.00022198,2]
[326601070,1715124653091,-329.71887269,0.00022275,2]
[326601071,1715124653104,-212.72954156,0.00022433,2]
[326601072,1715124653113,-500.0,0.00022465,2]
[326601073,1715124653123,-423.26326081,0.000225,2]
[326601074,1715124653132,-156.03484494,0.0002254,2]
[326601075,1715124653141,-1000.0,0.00022592,2]
[326601076,1715124653150,-162.14902037,0.00022619,2]
[326601077,1715124653159,-288.0,0.00022696,2]
[326601078,1715124653168,-153.07187295,0.00022738,2]
[326601079,1715124653177,-500.0,0.00022739,2]
[326601080,1715124653187,-212.72954156,0.00022793,2]
[326601081,1715124653196,-212.72954156,0.00022843,2]
[326601082,1715124653205,-212.72954156,0.00022854,2]
[326601083,1715124653214,-212.72954156,0.00022872,2]
[326601084,1715124653226,-4000.0,0.00022874,11]
[326601085,1715124653235,-150.0,0.00022999,2]
[326601086,1715124653244,-162.14902037,0.00023,2]
[326601087,1715124653253,-1009.9,0.00023,2]
[326601088,1715124653262,-500.0,0.00023013,2]
[326601089,1715124653272,-212.72954156,0.00023015,2]
[326601090,1715124653281,-470.32999998,0.00023067,7]
[326601091,1715124653294,-152.08051347,0.00023087,2]
[326601092,1715124653303,-212.72954156,0.00023259,2]
[326601093,1715124653313,-500.0,0.00023287,2]
[326601094,1715124653322,-151.68738035,0.00023314,2]
[326601095,1715124653332,-4975.41,0.00023368,2]
[326601096,1715124653341,-2001.69227616,0.000234,2]
[326601097,1715124653351,-162.14902037,0.00023456,2]
[326601098,1715124653361,-700.35696819,0.00023552,2]
[326601099,1715124653370,-483.54,0.00023561,2]
[326601100,1715124653379,-500.0,0.00023689,2]
[326601101,1715124653390,-500.0,0.00023698,2]
[326601102,1715124653399,-154.55525911,0.00023751,2]
[326601103,1715124653409,-167.98318954,0.00023751,2]
[326601104,1715124653419,-1009.9,0.00023845,2]
[326601105,1715124653428,-212.72954156,0.00023946,2]
[326601106,1715124653438,-150.0,0.00023999,2]
[326601107,1715124653448,-432.36004694,0.00024,2]
[326601108,1715124653457,-900.0,0.00024,3]
[326601109,1715124653467,-212.72954156,0.00024082,2]
[326601110,1715124653476,-152.57778557,0.00024093,2]
[326601111,1715124653485,-212.72954156,0.00024135,2]
[326601112,1715124653495,-212.72954156,0.00024176,2]
[326601113,1715124653504,-2925.1475,0.00024181,2]
[326601114,1715124653513,-152.57778557,0.00024211,2]
[326601115,1715124653523,-153.98340645,0.00024214,2]
[326601116,1715124653540,-180.0,0.0002423,2]
[326601117,1715124653549,-4398.98989964,0.00024234,15]
[326601118,1715124653558,-14352.07543598,0.00024281,2]
[326601119,1715124653568,-14315.64883517,0.00024281,2]
[326601120,1715124653577,-1000.0,0.00024312,2]
[326601121,1715124653586,-7630.1549,0.00024312,2]
[326601122,1715124653596,-174.10463254,0.00024409,2]
[326601123,1715124653605,-3079.50911342,0.00024412,2]
[326601124,1715124653615,-1000.0,0.00024413,2]
[326601125,1715124653624,-159.99056552,0.00024413,2]
[326601126,1715124653633,-155.0,0.00024413,2]
[326601127,1715124653643,-324.38331955,0.00024413,2]
[326601128,1715124653652,-155.0,0.00024413,2]
[326601129,1715124653661,-155.51027584,0.00024414,2]
[326601130,1715124653670,-167.20569175,0.00024414,2]
[326601131,1715124653679,-155.2956298,0.00024414,3]
[326601132,1715124653688,-1684.35110577,0.00024414,2]
[326601133,1715124653698,-212.72954156,0.00024416,2]
[326601134,1715124653708,-1000.0,0.00024646,2]
[326601135,1715124653717,-1000.0,0.00024654,2]
[326601136,1715124653726,-236.33410117,0.00024655,2]
[326601137,1715124653736,-1009.9,0.0002469,2]
[326601138,1715124653745,-1000.0,0.00024709,3]
[326601139,1715124653754,-155.73519123,0.00024742,2]
[326601140,1715124653764,-212.72954156,0.00024756,2]
[326601141,1715124653773,-166.66666665,0.00024761,2]
[326601142,1715124653783,-1000.0,0.00024764,4]
[326601143,1715124653796,-153.98340647,0.00024821,2]
[326601144,1715124653805,-212.72954176,0.00024826,2]
[326601145,1715124653814,-298.4064381,0.00024889,2]
[326601146,1715124653823,-181.30340212,0.0002489,2]
[326601147,1715124653833,-500.0,0.000249,2]
[326601148,1715124653843,-3000.0,0.000249,2]
[326601149,1715124653852,-164.38402847,0.000249,2]
[326601150,1715124653862,-154.55525911,0.00024912,2]
[326601151,1715124653871,-11602.39975101,0.00024953,2]
[326601152,1715124653881,-17546.07258482,0.0002499,2]
[326601153,1715124653891,-500.0,0.00024998,2]
[326601154,1715124653900,-150.0,0.00024999,2]
[326601155,1715124653909,-500.0,0.00024999,2]
[326601156,1715124653919,-500.0,0.00024999,2]
[326601157,1715124653930,-500.0,0.00024999,2]
[326601158,1715124653939,-1041.33176482,0.00025,2]
[326601159,1715124653948,-500.0,0.00025,2]
[326601160,1715124653957,-168.48594337,0.00025,2]
[326601161,1715124653967,-9043.36909893,0.00025,7]
[326601162,1715124653976,-30516.0950233,0.00025,2]
[326601163,1715124653985,-209.31921844,0.00025,2]
[326601164,1715124653995,-2218.84407319,0.00025,2]
[326601165,1715124654004,-37405.34258539,0.00025,2]
[326601166,1715124654014,-155.0,0.00025,2]
[326601167,1715124654024,-205.38829398,0.00025,7]
[326601168,1715124654034,-471.69374245,0.00025,2]
[326601169,1715124654049,-335.61056735,0.00025,7]
[326601170,1715124654059,-6882.11700391,0.00025,2]
[326601171,1715124654068,-1009.9,0.00025,2]
[326601172,1715124654078,-300.86,0.00025,2]
[326601173,1715124654087,-500.0,0.00025007,2]
[326601174,1715124654098,-500.0,0.00025015,2]
[326601175,1715124654107,-500.0,0.00025024,2]
[326601176,1715124654117,-154.55525911,0.00025027,2]
[326601177,1715124654127,-500.0,0.00025033,2]
[326601178,1715124654136,-500.0,0.00025042,2]
[326601179,1715124654146,-500.0,0.00025051,2]
[326601180,1715124654155,-200.0,0.00025124,2]
[326601181,1715124654164,-500.0,0.00025205,2]
[326601182,1715124654174,-500.0,0.00025205,2]
[326601183,1715124654183,-500.0,0.00025205,2]
[326601184,1715124654192,-500.0,0.00025205,2]
[326601185,1715124654202,-500.0,0.00025205,2]
[326601186,1715124654211,-500.0,0.00025205,2]
[326601187,1715124654221,-1192.0,0.00025226,2]
[326601188,1715124654230,-329.71887269,0.00025299,2]
[326601189,1715124654240,-8245.77050558,0.000253,2]
[326601190,1715124654250,-758.20969462,0.000253,2]
[326601191,1715124654259,-2138.46152454,0.000253,2]
[326601192,1715124654269,-428.53853625,0.000253,2]
[326601193,1715124654279,-3419.00624458,0.000253,2]
[326601194,1715124654291,-4638.80998528,0.00025318,2]
[326601195,1715124654301,-1032.11,0.00025325,15]
[326601196,1715124654310,-173.04,0.0002537,15]
[326601197,1715124654320,-350.62,0.00025379,2]
[326601198,1715124654329,-150.5,0.0002538,15]
[326601199,1715124654339,-150.5,0.0002539,15]
[326601200,1715124654349,-2357.60097986,0.00025398,2]
[326601201,1715124654358,-208.17791052,0.00025398,2]
[326601202,1715124654368,-155.79076709,0.00025398,2]
[326601203,1715124654377,-156.13837868,0.00025398,2]
[326601204,1715124654387,-258.25433552,0.00025398,2]
[326601205,1715124654398,-611.07740058,0.00025398,4]
[326601206,1715124654408,-3139.60301052,0.00025398,2]
[326601207,1715124654417,-500.0,0.00025398,2]
[326601208,1715124654427,-500.0,0.00025398,2]
[326601209,1715124654437,-500.0,0.00025398,2]
[326601210,1715124654446,-500.0,0.00025398,2]
[326601211,1715124654456,-500.0,0.00025398,2]
[326601212,1715124654466,-500.0,0.00025398,2]
[326601213,1715124654475,-500.0,0.00025398,2]
[326601214,1715124654484,-500.0,0.00025398,2]
[326601215,1715124654493,-500.0,0.00025398,2]
[326601216,1715124654503,-500.0,0.00025398,2]
[326601217,1715124654512,-500.0,0.00025398,2]
[326601218,1715124654522,-500.0,0.00025398,2]
[326601219,1715124654536,-1076.51,0.00025398,2]
[326601220,1715124654548,-610063.61254197,0.00025398,2]
[326601221,1715124654558,-155.11021038,0.00025399,2]
[326601222,1715124654567,-155.35624717,0.00025399,2]
[326601223,1715124654576,-271.16516623,0.00025399,2]
[326601224,1715124654586,-1073161.41832085,0.00025399,2]
[326601225,1715124654595,-181.28,0.000254,2]
[326601226,1715124654605,-163.92,0.000254,2]
[326601227,1715124654620,-181.3,0.000254,2]
[326601228,1715124654629,-1009.9,0.00025535,2]
[326601229,1715124654638,-700.35696819,0.00025801,2]
[326601230,1715124654647,-1009.9,0.00025845,2]
[326601231,1715124654656,-237.16,0.0002589,2]
[326601232,1715124654666,-150.0,0.00025999,2]
[326601233,1715124654675,-150.0,0.00026079,2]
[326601234,1715124654684,-167.98318954,0.00026101,2]
[326601235,1715124654694,-1009.9,0.0002638,2]
[326601236,1715124654704,-1009.9,0.0002669,2]
[326601237,1715124654713,-4638.80998522,0.00026721,2]
[326601238,1715124654723,-300.86,0.0002674,2]
[326601239,1715124654732,-1076.51,0.00026767,4]
[326601240,1715124654741,-207.525188,0.00026774,2]
[326601241,1715124654751,-1000.0,0.00026774,5]
[326601242,1715124654760,-500.0,0.00026774,2]
[326601243,1715124654769,-200.0,0.00026774,2]
[326601244,1715124654779,-4000.0,0.00026789,31]